bitfinex/quotes_ETHUSD_20260226
["timestamp","ask_amount","ask_price","bid_price","bid_amount"]
[1772117293898,1.00834737,2039.1,2038.1,0.0011]
[1772117294120,1.00834737,2038.9,2037.1,1.22723479]
[1772117294272,1.00834737,2038.7,2036.8,1.22741555]
[1772117294804,1.00834737,2038.7,2036.9,2.10784014]
[1772117294805,1.552,2038.6,2036.9,2.10784014]
[1772117294984,1.552,2038.6,2036.8,1.22741555]
[1772117295173,1.22639195,2038.5,2036.8,1.17741555]
[1772117295972,2.23473932,2038.5,2036.8,1.17741555]
[1772117296173,1.00834737,2038.4,2036.4,0.92672978]
[1772117296373,1.00834737,2038.4,2036.3,4.91084369]
[1772117296573,1.00834737,2038.4,2036.5,2.10784014]
[1772117296807,1.00834737,2038.4,2036.7,0.18685624]
[1772117297006,1.583,2038.8,2037.0,0.26877624]
[1772117297303,1.22613936,2039.0,2037.6,0.18685624]
[1772117297510,1.22613936,2039.0,2037.5,1.22699386]
[1772117298007,1.22613936,2039.0,2037.4,1.22]
[1772117298008,1.00834737,2038.9,2037.4,1.22]
[1772117298196,1.00834737,2038.9,2037.2,1.22712782]
[1772117298538,1.00834737,2040.0,2037.9,0.92672978]
[1772117298829,2.23383781,2040.0,2038.6,0.18685624]
[1772117299413,2.23383781,2040.0,2038.3,0.08192]
[1772117299414,2.23383781,2040.0,2038.4,0.003]
[1772117299616,1.00834737,2039.9,2038.4,0.003]
[1772117299913,1.00834737,2039.7,2038.4,0.003]
[1772117300319,1.00834737,2039.3,2037.4,1.22701223]
[1772117300479,1.00834737,2039.1,2037.4,1.22701223]
[1772117300876,1.582,2039.2,2037.5,2.10784014]
[1772117301115,1.582,2039.2,2037.6,0.18685624]
[1772117301320,1.582,2039.2,2038.0,0.18685624]
[1772117301655,1.22577743,2039.6,2038.3,2.10784014]
[1772117301858,1.581,2040.0,2038.3,2.10784014]
[1772117301859,1.22549019,2040.0,2038.4,0.18685624]
[1772117302472,1.22549019,2040.0,2038.3,0.92672978]
[1772117302616,1.22549019,2040.0,2037.4,1.22701223]
[1772117302617,1.00834737,2039.9,2037.7,1.22687343]
[1772117303354,1.22561035,2039.8,2037.9,1.22675303]
[1772117303741,2.23395772,2039.8,2037.9,1.22675303]
[1772117304139,2.23395772,2039.8,2037.9,3.33459317]
[1772117304543,1.00834737,2039.7,2037.9,1.22675303]
[1772117304743,1.00834737,2039.7,2037.5,4.90797046]
[1772117305043,1.00834737,2039.7,2038.0,0.18685624]
[1772117305556,1.22573053,2039.6,2038.1,1.22663264]
[1772117305752,1.581,2039.5,2038.1,1.22663264]
[1772117306185,4.90244141,2039.9,2038.1,1.22663264]
[1772117306186,1.22537006,2040.2,2038.4,0.18685624]
[1772117307059,1.22537006,2040.2,2038.3,0.08192]
[1772117307060,0.94384061,2040.1,2038.3,0.18685624]
[1772117307350,0.94384061,2040.1,2038.2,1.219]
[1772117307521,0.94384061,2039.9,2038.3,1.22651228]
[1772117308339,0.94384061,2039.9,2038.4,0.18685624]
[1772117309050,0.94384061,2039.9,2038.3,1.22651228]
[1772117309451,0.94384061,2039.9,2038.0,4.90674204]
[1772117309661,2.16945096,2039.8,2038.1,0.18685624]
[1772117309974,2.16945096,2039.8,2038.1,0.13685624]
[1772117310345,1.22561035,2039.8,2038.3,2.10784014]
[1772117310583,1.22561035,2039.8,2038.3,3.10980832]
[1772117311079,1.22561035,2039.8,2038.3,1.00196818]
[1772117311569,2.16921067,2040.2,2038.4,2.10784014]
[1772117311745,2.16921067,2040.2,2038.8,2.10784014]
[1772117311941,0.001,2040.5,2038.9,0.18685624]
[1772117312153,1.22623905,2040.5,2038.9,1.18882442]
[1772117312376,1.22619074,2040.5,2039.0,0.18685624]
[1772117312793,1.22619074,2040.5,2039.0,0.26877624]
[1772117313074,0.001,2040.5,2039.3,0.18685624]
[1772117313274,1.57,2040.9,2039.6,2.10784014]
[1772117313275,1.075,2040.9,2039.6,2.10784014]
[1772117313441,1.22458976,2041.5,2039.7,0.08192]
[1772117313640,1.22458976,2041.5,2039.8,1.22561035]
[1772117313877,0.001,2040.3,2039.8,2.17757853]
[1772117314186,5.84219965,2041.7,2039.8,2.17757853]
[1772117314187,1.22449499,2041.7,2040.1,3.48367546]
[1772117314380,2.16747136,2043.1,2041.4,2.10784014]
[1772117314548,0.94384061,2043.1,2041.4,3.31684014]
[1772117314745,0.94384061,2043.1,2041.4,2.10784014]
[1772117314967,0.94384061,2043.1,2041.4,0.08192]
[1772117315158,3.73644857,2043.2,2041.3,1.21]
[1772117315353,3.73644857,2043.2,2042.5,1.0]
[1772117315354,3.73642854,2043.2,2042.5,1.0]
[1772117315558,1.569,2043.2,2042.6,1.22393028]
[1772117315877,0.94384061,2043.7,2042.6,1.22393028]
[1772117316078,2.79119411,2043.9,2042.6,1.22393028]
[1772117316079,1.568,2043.9,2042.6,1.17393028]
[1772117316255,0.94384061,2043.8,2042.5,2.22394613]
[1772117316448,0.94384061,2043.8,2042.5,2.17394613]
[1772117316674,1.22316011,2043.9,2042.5,0.95]
[1772117316874,5.8355276,2044.3,2042.7,0.18685624]
[1772117317192,2.16679427,2044.3,2042.6,1.22393028]
[1772117317377,1.569,2044.2,2042.6,1.22393028]
[1772117317582,0.94384061,2043.9,2042.5,2.17394868]
[1772117318507,2.79201001,2044.2,2042.6,0.18685624]
[1772117318808,3.72289986,2044.2,2042.5,2.17394868]
[1772117318969,3.72288848,2044.2,2042.5,2.17394868]
[1772117319178,0.93090909,2044.1,2042.5,2.17394868]
[1772117319505,2.79197939,2044.2,2042.5,2.17397692]
[1772117319506,2.10784014,2044.0,2042.5,2.17397692]
[1772117319683,2.10784014,2044.0,2042.5,2.17397793]
[1772117319684,0.93090909,2043.7,2042.5,2.17397793]
[1772117320086,4.89284665,2044.0,2042.5,2.17397793]
[1772117320087,1.22312975,2044.0,2042.5,2.17397793]
[1772117320408,1.22312975,2044.0,2042.5,1.22397793]
[1772117320409,1.22313331,2044.0,2042.5,1.22397793]
[1772117320618,2.1540424,2044.0,2042.5,1.22397793]
[1772117320818,0.93090909,2043.9,2042.5,1.22397793]
[1772117321326,1.22291248,2044.3,2042.8,0.18685624]
[1772117321687,1.22291248,2044.3,2042.9,1.22375055]
[1772117321934,2.78579711,2044.5,2043.2,0.18685624]
[1772117322083,1.22231457,2045.3,2043.6,0.93148568]
[1772117322288,0.93090909,2045.2,2043.3,1.11834192]
[1772117322503,4.89025829,2045.5,2043.7,1.11834192]
[1772117322504,1.2232226,2045.5,2043.7,1.11834192]
[1772117322936,0.001,2045.5,2044.1,1.11834192]
[1772117323102,1.22319844,2045.5,2044.1,2.13848568]
[1772117323296,1.564,2045.4,2044.1,0.93148568]
[1772117323501,1.564,2045.4,2043.7,0.26877624]
[1772117323726,1.564,2045.4,2043.8,1.22321166]
[1772117323727,1.22231457,2045.3,2043.8,1.22321166]
[1772117324032,0.93090909,2045.2,2043.1,3.31384014]
[1772117324232,0.93090909,2045.2,2043.2,1.22357086]
[1772117324401,1.22231457,2045.3,2043.2,1.22357086]
[1772117324402,3.03874923,2045.0,2043.2,1.22357086]
[1772117324599,3.03874923,2045.0,2042.5,4.89572113]
[1772117324940,0.93090909,2044.7,2042.5,4.89572113]
[1772117325099,1.564,2044.6,2042.5,4.89572113]
[1772117325299,1.564,2044.6,2043.1,1.51016249]
[1772117325502,1.564,2044.6,2043.1,2.44164817]
[1772117325734,1.564,2044.6,2043.5,1.22339124]
[1772117325920,2.7867516,2044.6,2043.5,1.22339124]
[1772117326443,1.22352022,2045.0,2043.5,1.22339124]
[1772117327297,1.22352022,2045.0,2043.1,5.82505064]
[1772117327298,0.93090909,2044.7,2043.1,4.894367]
[1772117327522,0.93090909,2044.7,2042.9,1.22375055]
[1772117327523,1.51016249,2044.5,2042.9,1.22375055]
[1772117327834,1.51016249,2044.5,2042.6,1.22393028]
[1772117327835,1.51016249,2044.2,2042.6,1.22393028]
[1772117328031,1.561,2044.1,2042.6,1.22393028]
[1772117328235,2.15446276,2045.0,2043.0,1.51016249]
[1772117328532,6.45041722,2044.9,2043.3,1.51016249]
[1772117328734,4.15037867,2044.9,2043.1,0.18685624]
[1772117329034,1.559,2044.8,2043.3,1.51016249]
[1772117329207,1.559,2044.8,2043.0,2.90101873]
[1772117329409,1.559,2044.8,2042.8,1.01340568]
[1772117329636,2.48990909,2044.8,2042.8,0.93148568]
[1772117329936,0.93090909,2044.5,2042.9,1.22375055]
[1772117330639,1.22267325,2044.7,2043.0,1.51016249]
[1772117330933,0.93090909,2044.5,2042.9,1.22375055]
[1772117331138,2.44107158,2044.4,2042.9,1.22375055]
[1772117331345,1.51016249,2044.1,2042.5,1.2239902]
[1772117331544,1.555,2044.0,2042.5,1.2239902]
[1772117331710,2.48590909,2044.0,2042.5,1.2239902]
[1772117332041,2.48590909,2044.0,2041.9,6.09928997]
[1772117332042,1.51016249,2043.4,2042.0,1.22428991]
[1772117332228,1.22315181,2043.9,2042.1,1.51016249]
[1772117332630,1.22315181,2043.9,2042.4,1.51016249]
[1772117333150,2.44107158,2043.8,2042.0,1.22428991]
[1772117333444,0.93090909,2043.4,2042.0,1.22428991]
[1772117333847,1.22315181,2043.9,2042.2,1.51016249]
[1772117334057,1.22315181,2043.9,2042.3,1.22411007]
[1772117334856,1.22315181,2043.9,2042.5,1.51016249]
[1772117335026,1.22315181,2043.9,2042.3,1.22411007]
[1772117335621,1.22315181,2043.9,2042.4,0.18685624]
[1772117335824,4.8911067,2044.8,2042.4,0.18685624]
[1772117335825,2.77279285,2044.5,2043.2,1.22357086]
[1772117336152,1.223526,2045.0,2043.4,1.51016249]
[1772117336322,1.223526,2045.0,2043.2,1.22357086]
[1772117336723,0.001,2045.0,2043.7,1.51016249]
[1772117336947,0.001,2045.0,2043.5,0.08192]
[1772117336948,1.22351032,2045.0,2043.5,0.08192]
[1772117337251,1.2235053,2045.0,2043.4,2.47216145]
[1772117337552,1.2235053,2045.0,2043.4,0.96199896]
[1772117337720,1.2235053,2045.0,2043.2,1.22357086]
[1772117337916,3.7022685,2045.0,2043.2,1.22357086]
[1772117338555,2.73366779,2045.0,2043.2,1.22357086]
[1772117338860,0.96860071,2044.9,2043.2,1.22357086]
[1772117340053,0.001,2044.7,2043.1,4.89428347]
[1772117340221,0.001,2044.7,2043.3,1.51016249]
[1772117340422,0.96960071,2044.7,2042.7,1.51016249]
[1772117340633,2.4787632,2044.5,2042.6,5.85724078]
[1772117340828,0.96860071,2044.5,2042.6,5.85724078]
[1772117341051,1.51016249,2044.2,2042.6,4.89524182]
[1772117341252,0.96860071,2044.0,2042.5,1.2250428]
[1772117341549,1.544,2044.1,2042.5,1.2250428]
[1772117341550,2.51260071,2044.1,2042.5,1.2250428]
[1772117341755,0.96860071,2044.0,2042.5,1.2250428]
[1772117341959,1.22315181,2043.9,2042.5,0.0011]
[1772117342262,4.89033652,2044.9,2043.2,2.47216145]
[1772117342432,0.96960071,2045.0,2043.5,1.51016249]
[1772117342433,0.001,2045.0,2043.5,1.51016249]
[1772117342638,1.22367456,2044.7,2043.5,1.51016249]
[1772117342830,1.22367456,2044.7,2043.3,0.96199896]
[1772117343341,1.22367456,2044.7,2043.1,1.192]
[1772117343759,2.73383705,2044.7,2043.1,1.192]
[1772117343940,2.73383705,2044.7,2042.9,1.22375055]
[1772117344330,0.96860071,2044.3,2042.9,1.22375055]
[1772117344530,6.36367456,2044.7,2042.6,1.22393028]
[1772117344531,0.96860071,2044.0,2042.6,1.22393028]
[1772117345328,1.541,2044.2,2042.6,2.73409277]
[1772117345938,1.22303214,2044.1,2042.6,2.73409277]
[1772117346162,2.73319463,2044.1,2042.6,1.22393028]
[1772117346859,3.70179534,2044.1,2042.6,1.22393028]
[1772117347057,3.70179534,2044.1,2042.5,0.0011]
[1772117347058,2.4787632,2043.8,2042.5,0.0011]
[1772117347265,0.96860071,2043.7,2042.5,0.0011]
[1772117347463,0.96860071,2043.4,2042.5,0.0011]
[1772117347635,1.536,2043.3,2042.1,1.2241905]
[1772117347831,0.96860071,2043.1,2042.0,0.0041]
[1772117348138,0.96860071,2042.8,2041.0,1.51016249]
[1772117348459,1.536,2042.7,2041.4,1.51016249]
[1772117349637,1.536,2042.7,2041.1,0.96199896]
[1772117349946,1.51016249,2042.6,2040.8,2.73517229]
[1772117350294,2.19259091,2042.5,2040.8,1.2250098]
[1772117350491,2.4787632,2042.3,2040.8,1.2250098]
[1772117350773,2.4787632,2042.3,2040.2,1.22537006]
[1772117350774,0.96860071,2042.2,2040.2,1.22537006]
[1772117351183,0.96860071,2042.2,2040.2,2.18736902]
[1772117351184,1.51016249,2042.0,2040.2,2.18736902]
[1772117351476,2.50060071,2041.9,2040.2,1.22537006]
[1772117351690,0.96860071,2041.8,2040.2,1.22537006]
[1772117351880,4.19274054,2041.9,2040.4,1.51016249]
[1772117351881,1.532,2041.9,2040.4,1.51016249]
[1772117352039,1.22417001,2042.2,2040.9,1.22494977]
[1772117353235,4.89668005,2042.6,2040.9,1.22494977]
[1772117353440,1.53,2042.6,2041.4,1.51016249]
[1772117353972,1.53,2042.6,2041.5,0.18685624]
[1772117354135,1.22351098,2043.3,2041.6,2.18652874]
[1772117354340,1.22351098,2043.3,2041.7,2.47216145]
[1772117354341,1.53,2043.2,2041.7,2.47216145]
[1772117354544,1.53,2043.2,2041.6,1.22452978]
[1772117354778,0.96860071,2042.9,2041.6,1.22452978]
[1772117354978,1.51016249,2042.7,2041.4,1.22464975]
[1772117355144,0.96860071,2042.9,2041.4,1.22464975]
[1772117355348,1.53,2043.2,2041.4,2.18664871]
[1772117355944,1.53,2043.2,2041.5,1.51016249]
[1772117356144,1.22369065,2043.0,2041.4,2.18664871]
[1772117356383,1.22369065,2043.0,2041.1,1.22482974]
[1772117356384,1.51016249,2042.5,2041.1,1.22482974]
[1772117356700,1.526,2042.4,2041.1,1.22482974]
[1772117357370,1.526,2042.4,2041.2,0.96199896]
[1772117357568,1.526,2042.4,2041.3,0.96199896]
[1772117357748,1.22360916,2043.2,2041.8,1.51016249]
[1772117357964,1.51016249,2043.1,2041.6,0.96199896]
[1772117358162,1.22369065,2043.0,2041.1,0.96199896]
[1772117358368,1.22369065,2043.0,2041.2,1.22470974]
[1772117358593,0.96860071,2042.7,2041.2,1.22470974]
[1772117358780,0.96860071,2042.7,2041.1,1.22480915]
[1772117359186,0.96860071,2042.7,2041.0,1.22594225]
[1772117359877,0.96860071,2042.7,2041.2,1.51016249]
[1772117360087,0.96860071,2042.7,2041.0,1.22594225]
[1772117360276,7.3735258,2043.1,2041.3,0.96199896]
[1772117360485,0.96860071,2043.0,2041.3,0.96199896]
[1772117361283,4.89435198,2043.2,2041.7,1.51016249]
[1772117361500,4.89435198,2043.2,2041.7,2.47216145]
[1772117361804,4.89435198,2043.2,2041.7,0.96199896]
[1772117362372,4.89435198,2043.2,2041.8,1.22440983]
[1772117362571,1.524,2043.3,2042.0,1.51016249]
[1772117362876,0.96860071,2044.0,2042.4,0.18685624]
[1772117363075,2.74115181,2043.9,2042.4,0.18685624]
[1772117363280,2.74115181,2043.9,2042.4,1.1488552]
[1772117363524,0.96860071,2042.4,2041.0,0.0011]
[1772117363800,5.14,2041.8,2040.0,4.9019596]
[1772117363967,1.522,2041.7,2040.0,6.41212209]
[1772117364163,0.96860071,2041.9,2040.0,6.41212209]
[1772117364368,0.96860071,2041.9,2040.0,7.37412105]
[1772117364369,2.74657605,2041.6,2040.0,7.37412105]
[1772117364563,2.74657605,2041.6,2040.0,2.18748915]
[1772117364769,2.74657605,2041.6,2040.0,2.73565268]
[1772117365194,1.22457605,2041.6,2040.3,1.51016249]
[1772117365376,1.22445577,2041.8,2040.3,2.47216145]
[1772117365586,1.22445577,2041.8,2040.4,0.18685624]
[1772117365786,2.74537979,2041.9,2040.6,1.51016249]
[1772117366301,2.74537979,2041.9,2040.7,1.22506982]
[1772117366997,2.74537979,2041.9,2040.4,1.22524995]
[1772117366998,1.51016249,2041.8,2040.4,1.22524995]
[1772117367294,2.74537979,2041.9,2040.4,1.22524995]
[1772117367699,1.51016249,2041.8,2040.0,1.22543012]
[1772117367874,2.63079341,2041.8,2040.0,1.22543012]
[1772117368312,1.2244698,2041.7,2039.8,2.34428016]
[1772117369398,1.2244698,2041.7,2040.5,0.0011]
[1772117369594,2.63079341,2041.5,2040.5,0.0011]
[1772117369793,1.2244698,2041.7,2040.5,0.0011]
[1772117369992,1.514,2041.6,2040.5,0.0011]
[1772117370371,6.01851013,2042.0,2040.5,1.51126249]
[1772117370372,1.22434987,2042.0,2040.5,1.51126249]
[1772117370706,1.516,2042.2,2040.9,1.11872989]
[1772117370905,1.516,2042.2,2041.1,2.62889238]
[1772117371081,1.22402912,2042.5,2041.3,0.18685624]
[1772117371285,1.22402912,2042.5,2041.2,1.11872989]
[1772117372306,1.22385413,2042.8,2041.3,1.30558613]
[1772117372481,4.89614753,2042.9,2041.5,1.22458976]
[1772117373512,4.89614753,2042.9,2041.4,4.89835904]
[1772117373688,1.51016249,2042.5,2041.0,1.22488975]
[1772117373889,2.63079341,2042.5,2040.5,0.0011]
[1772117374086,1.51016249,2041.9,2040.5,1.22628138]
[1772117374285,1.514,2041.8,2040.5,1.22628138]
[1772117374496,1.2244698,2041.7,2040.5,0.0011]
[1772117375378,1.51016249,2041.6,2040.5,0.0011]
[1772117376211,1.12063092,2041.5,2040.3,0.0011]
[1772117376524,4.89765598,2041.8,2040.3,0.0011]
[1772117376808,1.514,2041.5,2040.3,0.0011]
[1772117378305,1.22422995,2042.1,2040.7,1.51016249]
[1772117378493,1.22422995,2042.1,2040.8,1.2250098]
[1772117378693,1.511,2042.2,2040.9,1.31499401]
[1772117379026,1.51,2042.7,2041.3,1.31499401]
[1772117379532,1.51,2042.7,2041.4,1.12813777]
[1772117379683,1.22475696,2042.9,2041.6,2.63830026]
[1772117379990,0.001,2042.9,2041.7,0.18685624]
[1772117380195,0.001,2042.9,2041.7,1.31499401]
[1772117380383,0.001,2042.9,2042.1,1.22422995]
[1772117380598,0.001,2042.9,2042.1,2.35236772]
[1772117380800,1.22343792,2043.5,2042.1,2.35236772]
[1772117381005,1.509,2044.2,2042.4,1.31499401]
[1772117381231,1.22303214,2044.1,2042.5,1.51016249]
[1772117381531,4.24216368,2044.2,2042.3,1.165]
[1772117381835,1.51016249,2043.9,2042.3,1.165]
[1772117382033,4.24216368,2044.2,2042.3,1.165]
[1772117382200,2.73200119,2044.2,2042.4,0.18685624]
[1772117382402,2.73200119,2044.2,2042.3,1.165]
[1772117382403,2.73200119,2044.2,2042.6,1.31499401]
[1772117382744,1.509,2044.4,2043.1,1.51016249]
[1772117382918,0.001,2044.7,2043.1,1.51016249]
[1772117383240,0.001,2044.7,2043.7,1.51016249]
[1772117383933,0.001,2044.7,2043.8,1.51016249]
[1772117384110,1.22273305,2044.6,2043.2,0.18685624]
[1772117384313,0.001,2044.7,2043.6,1.51016249]
[1772117384510,0.001,2044.7,2043.9,1.51016249]
[1772117384711,0.001,2044.7,2043.8,1.22321166]
[1772117385330,0.001,2044.7,2043.4,1.22345111]
[1772117386297,0.001,2044.7,2043.2,1.22357086]
[1772117386721,0.001,2044.7,2043.4,1.12813777]
[1772117386940,0.001,2044.7,2043.5,1.12813777]
[1772117387159,0.001,2044.7,2043.3,1.167]
[1772117387439,1.04799153,2044.5,2043.0,1.223683]
[1772117387627,0.001,2044.7,2043.1,1.12813777]
[1772117387628,1.511,2044.4,2043.1,1.12813777]
[1772117388000,0.001,2044.7,2043.3,1.12813777]
[1772117388416,0.001,2044.7,2042.9,3.22371036]
[1772117388417,2.11382663,2044.6,2042.9,3.22371036]
[1772117388640,2.11382663,2044.2,2042.9,2.0]
[1772117388807,2.55899153,2044.1,2042.9,2.0]
[1772117389238,1.04799153,2043.9,2042.9,2.0]
[1772117389434,1.62956173,2043.8,2042.0,1.12813777]
[1772117390426,1.511,2044.1,2042.0,1.12813777]
[1772117390634,1.22309197,2044.0,2042.4,1.12813777]
[1772117390944,2.73404955,2044.1,2042.7,1.12813777]
[1772117391109,2.73404955,2044.1,2042.3,1.22411007]
[1772117392015,2.11382663,2043.7,2042.0,1.22426419]
[1772117392413,1.62956173,2043.8,2042.1,1.12813777]
[1772117392618,1.22327151,2043.7,2042.2,2.35230778]
[1772117393110,1.22325602,2043.8,2042.3,1.12813777]
[1772117393443,2.73406261,2044.1,2042.3,1.12813777]
[1772117394725,2.73406261,2044.1,2042.4,2.3521879]
[1772117395125,2.11382663,2044.0,2042.4,1.22405013]
[1772117395321,1.62956173,2043.8,2042.2,1.22413405]
[1772117395641,1.62956173,2043.8,2042.0,4.89705782]
[1772117395642,5.14,2043.7,2042.0,4.89705782]
[1772117395832,2.62779851,2043.8,2042.0,4.89705782]
[1772117396036,2.11382663,2043.5,2041.9,2.35244539]
[1772117396233,0.99891852,2043.7,2042.5,0.0011]
[1772117396733,0.99727056,2043.5,2042.5,0.0011]
[1772117397044,1.22333137,2043.6,2042.3,0.0011]
[1772117398854,4.8933255,2043.7,2042.3,0.0011]
[1772117400046,4.8933255,2043.7,2042.3,1.04531771]
[1772117400047,1.503,2043.6,2042.3,1.04531771]
[1772117400243,1.503,2043.6,2042.3,0.0011]
[1772117400646,2.11382663,2043.5,2042.3,0.0011]
[1772117400847,1.22339124,2043.5,2042.3,0.0011]
[1772117401229,3.10344837,2043.3,2042.3,0.0011]
[1772117401544,0.98962174,2043.3,2042.3,0.0011]
[1772117401744,1.22339124,2043.5,2042.3,0.0011]
[1772117401926,1.502,2043.2,2042.3,0.0011]
[1772117402255,1.502,2043.2,2042.3,1.04531771]
[1772117402843,2.932,2044.2,2042.4,1.22405013]
[1772117403054,3.10179723,2044.3,2042.5,1.04421771]
[1772117403055,1.501,2044.3,2042.5,1.04421771]
[1772117403661,4.60126863,2044.3,2042.5,1.04421771]
[1772117404062,0.986442,2044.2,2042.5,1.04421771]
[1772117404437,1.501,2044.3,2042.5,1.04421771]
[1772117404641,0.001,2044.5,2043.0,1.04421771]
[1772117404937,0.001,2044.5,2043.3,1.22351098]
[1772117405175,0.001,2044.5,2043.0,2.26790836]
[1772117405371,0.001,2044.5,2043.1,1.04421771]
[1772117406376,0.001,2044.5,2043.4,1.04421771]
[1772117406973,0.001,2044.5,2043.0,1.22369065]
[1772117407271,0.001,2044.5,2042.9,1.04421771]
[1772117407583,0.001,2044.5,2042.5,1.04421771]
[1772117407748,0.001,2044.5,2042.9,1.04421771]
[1772117407945,0.001,2044.5,2043.1,1.04421771]
[1772117408148,0.001,2044.5,2042.7,1.155]
[1772117408149,0.001,2044.5,2043.3,1.04421771]
[1772117408356,0.001,2044.5,2043.5,1.04421771]
[1772117409068,0.001,2044.5,2043.6,1.22333137]
[1772117409268,0.001,2044.7,2043.7,1.04421771]
[1772117409691,2.72149983,2045.0,2044.1,1.04421771]
[1772117409692,0.001,2045.0,2044.1,1.04421771]
[1772117410152,0.001,2045.5,2044.2,1.04421771]
[1772117410568,1.4656448,2046.9,2044.6,1.04421771]
[1772117410767,1.4656448,2046.9,2044.7,1.04421771]
[1772117410768,0.97587941,2046.9,2044.7,1.04421771]
[1772117410973,2.19741757,2046.6,2044.8,1.22261345]
[1772117411302,1.22153816,2046.6,2044.8,1.04421771]
[1772117411519,1.499,2046.5,2044.8,1.04421771]
[1772117411803,1.499,2046.5,2045.1,1.04421771]
[1772117412873,1.22152466,2046.7,2045.1,1.04421771]
[1772117413077,4.88591391,2047.0,2045.1,1.04421771]
[1772117413078,1.498,2046.6,2045.2,2.26659204]
[1772117413308,1.498,2046.6,2045.2,1.04421771]
[1772117413596,0.98614201,2046.6,2045.0,1.22249388]
[1772117413897,1.498,2046.5,2045.0,2.26671159]
[1772117414094,1.498,2046.9,2045.1,1.04421771]
[1772117414592,1.498,2046.9,2045.3,1.04421771]
[1772117415063,1.2214188,2046.8,2045.4,2.26647252]
[1772117415263,1.2214188,2046.8,2045.5,1.04421771]
[1772117415461,1.22139916,2046.9,2045.5,1.04421771]
[1772117415664,2.71828532,2047.1,2045.5,1.04421771]
[1772117416770,4.88400534,2047.5,2045.4,1.22225481]
[1772117416771,1.22088196,2047.7,2045.8,1.04421771]
[1772117416970,1.496,2047.6,2045.8,1.04421771]
[1772117417170,3.09483866,2047.4,2045.8,1.04421771]
[1772117417477,0.98101203,2047.4,2045.8,2.26622923]
[1772117418115,1.22100122,2047.5,2046.1,1.04421771]
[1772117418318,2.71698095,2047.6,2046.1,1.04421771]
[1772117418483,1.496,2047.6,2046.3,1.04421771]
[1772117418688,2.71694402,2047.6,2046.3,1.04421771]
[1772117418877,2.71695274,2047.6,2046.3,1.04421771]
[1772117419214,1.496,2047.6,2046.5,1.04421771]
[1772117419415,1.2218271,2047.8,2046.6,1.04421771]
[1772117420214,1.2218271,2047.8,2046.3,1.22168611]
[1772117420507,1.2218271,2047.8,2046.4,1.04421771]
[1772117420715,0.1627804,2048.6,2047.5,1.04421771]
[1772117421176,0.1627804,2048.6,2047.7,1.04421771]
[1772117421374,1.38316109,2048.6,2047.7,1.04421771]
[1772117421631,0.1627804,2048.6,2047.7,1.04421771]
[1772117422318,1.38313494,2048.6,2047.7,1.04421771]
[1772117423217,1.38313494,2048.6,2047.2,2.26535405]
[1772117423383,0.97174366,2048.3,2046.3,1.22167758]
[1772117423578,3.08385176,2048.0,2046.3,1.22167758]
[1772117423779,2.11382663,2047.6,2045.7,2.26623354]
[1772117423983,2.50412425,2047.8,2045.9,1.04421771]
[1772117423984,1.498,2047.5,2045.9,1.04421771]
[1772117424707,1.498,2047.5,2046.0,1.04421771]
[1772117425212,1.498,2047.5,2046.4,1.04421771]
[1772117425401,1.498,2047.5,2046.5,2.26581555]
[1772117425591,1.496,2048.0,2046.6,1.04421771]
[1772117425794,1.496,2048.0,2046.5,1.22159784]
[1772117425998,1.496,2048.0,2046.6,1.08475757]
[1772117427526,1.22076273,2047.9,2046.7,1.22147847]
[1772117428012,1.493,2048.0,2046.4,1.22165754]
[1772117428216,0.9636052,2047.9,2046.3,2.30642752]
[1772117428389,2.69369287,2047.8,2046.3,1.22166995]
[1772117428715,2.69369287,2047.8,2046.3,2.30642752]
[1772117428924,2.69369287,2047.8,2046.4,1.08475757]
[1772117429123,1.493,2048.0,2046.4,1.08475757]
[1772117429416,1.22076273,2047.9,2046.5,1.22159784]
[1772117429616,1.22076273,2047.9,2046.5,2.30635541]
[1772117429921,3.65385027,2047.8,2045.9,1.08475757]
[1772117430088,2.69369287,2047.8,2045.9,1.08475757]
[1772117430423,3.65385027,2047.8,2045.9,1.08475757]
[1772117431105,0.95843801,2047.6,2045.9,1.08475757]
[1772117431304,2.69369287,2047.8,2045.9,1.08475757]
[1772117431503,1.22094159,2047.6,2046.1,1.08475757]
[1772117431703,2.71192704,2047.7,2046.1,1.08475757]
[1772117432100,2.71192704,2047.7,2046.2,1.08475757]
[1772117432705,2.71192704,2047.7,2046.0,1.22189638]
[1772117432706,5.78074673,2047.7,2046.0,1.22189638]
[1772117432914,0.95499306,2047.6,2046.0,1.22189638]
[1772117433222,0.95499306,2047.4,2045.8,1.22196996]
[1772117433590,0.95499306,2047.4,2045.7,5.97282091]
[1772117433591,1.2211205,2047.3,2046.0,1.22189638]
[1772117433908,1.2211205,2047.3,2045.9,5.9734431]
[1772117433909,2.11382663,2047.0,2045.9,0.0011]
[1772117434089,1.49,2046.9,2045.9,0.0011]
[1772117434294,0.95327319,2046.8,2045.7,0.0011]
[1772117434693,2.11382663,2046.4,2045.7,0.0011]
[1772117434920,0.95045541,2046.7,2045.7,0.0011]
[1772117435122,0.95045541,2046.7,2045.4,0.0011]
[1772117435617,1.22153816,2046.6,2045.4,0.0011]
[1772117436187,1.22153816,2046.6,2045.4,1.08585757]
[1772117436727,1.22153816,2046.6,2045.4,0.0011]
[1772117436910,0.94706594,2046.4,2045.4,0.0011]
[1772117437109,0.94706594,2046.4,2044.5,5.9759012]
[1772117437313,2.11382663,2046.1,2044.5,1.08475757]
[1772117437513,1.486,2046.0,2044.5,1.08475757]
[1772117437722,3.7587806,2045.9,2044.5,1.08475757]
[1772117438227,3.7587806,2045.9,2044.0,1.03107088]
[1772117438228,0.94574565,2045.6,2044.0,1.03107088]
[1772117438392,2.11382663,2045.3,2043.3,1.03107088]
[1772117438726,1.485,2045.2,2043.8,1.03107088]
[1772117438893,4.70284241,2045.9,2043.8,1.03107088]
[1772117439093,3.05788844,2045.7,2043.8,1.03107088]
[1772117439303,1.485,2045.6,2043.8,1.03107088]
[1772117439904,1.22219506,2045.5,2044.0,1.03107088]
[1772117440105,1.22201583,2045.8,2044.2,1.03107088]
[1772117440297,1.484,2045.5,2044.2,1.03107088]
[1772117440718,1.2214188,2046.8,2044.6,1.03107088]
[1772117440920,2.4236367,2046.7,2044.6,1.03107088]
[1772117441231,1.483,2046.7,2044.8,1.03107088]
[1772117441399,1.484,2046.7,2045.0,1.03107088]
[1772117442020,1.484,2046.7,2045.2,1.03107088]
[1772117442021,1.22153816,2046.6,2045.2,1.03107088]
[1772117442234,3.33536479,2046.6,2045.2,1.03107088]
[1772117442405,1.22153816,2046.6,2045.2,1.03107088]